bitfinex/quotes_ETHUSD_20250824
["timestamp","ask_amount","ask_price","bid_price","bid_amount"]
[1756079012069,1e-08,4799.3,4799.2,2.74368061]
[1756079012278,0.002,4799.8,4799.7,2.74346354]
[1756079012570,0.002,4799.8,4799.7,9.29246354]
[1756079012729,0.002,4799.8,4799.7,10.62720012]
[1756079012925,0.002,4799.8,4799.7,11.15910012]
[1756079014455,1e-08,4799.8,4799.7,11.15910012]
[1756079015086,0.002,4800.6,4800.0,3.66]
[1756079015238,0.002,4800.6,4800.5,5.74311634]
[1756079015440,0.002,4800.6,4800.5,10.66913771]
[1756079015956,0.002,4800.6,4800.5,11.09703771]
[1756079016357,0.4279,4801.0,4800.8,5.74298616]
[1756079016557,0.4279,4801.0,4800.8,9.29098616]
[1756079016764,0.4279,4801.0,4800.8,9.39498616]
[1756079016965,0.4279,4801.0,4800.8,10.70350694]
[1756079017470,0.7321,4800.9,4800.8,10.70350694]
[1756079017848,0.7321,4800.9,4800.8,10.67150694]
[1756079018047,0.7321,4800.9,4800.8,9.36298616]
[1756079018277,1.17890051,4800.9,4800.8,9.36298616]
[1756079019240,0.7321,4800.9,4800.8,9.36298616]
[1756079019676,0.4299,4800.9,4800.8,9.36298616]
[1756079019983,0.7321,4800.9,4800.8,9.36298616]
[1756079021070,0.002,4800.9,4800.8,10.55038004]
[1756079021481,0.4679,4801.4,4801.3,5.74276924]
[1756079021775,0.48661269,4801.4,4801.3,10.89176924]
[1756079021940,0.04,4801.4,4801.3,10.89176924]
[1756079022144,0.04,4801.4,4801.3,11.51769624]
[1756079022365,0.04,4801.4,4801.3,12.98174948]
[1756079023077,0.4452,4802.2,4801.4,5.74272587]
[1756079023278,0.4452,4802.3,4802.2,2.7423789]
[1756079023469,0.4452,4802.3,4802.2,7.8913789]
[1756079023470,0.7487,4802.3,4802.2,7.8913789]
[1756079023777,0.7487,4802.3,4802.2,7.9953789]
[1756079024275,0.7487,4802.3,4802.2,7.3353789]
[1756079025560,0.7487,4802.3,4802.2,1.706]
[1756079025750,0.7487,4802.3,4802.2,5.253]
[1756079025967,0.7487,4802.3,4802.2,7.3353789]
[1756079027789,0.04,4802.4,4802.3,5.74233554]
[1756079028490,0.7887,4802.4,4802.3,5.74233554]
[1756079029051,0.04,4802.4,4802.3,5.74233554]
[1756079030002,0.7887,4802.4,4802.3,5.74233554]
[1756079031793,0.4852,4802.4,4802.3,5.74233554]
[1756079031973,0.04,4802.4,4802.3,5.74233554]
[1756079032296,0.7887,4802.4,4802.3,5.74233554]
[1756079032660,0.78705598,4802.4,4802.3,8.62733554]
[1756079033711,1.23372855,4802.4,4802.3,8.62733554]
[1756079034200,0.78705598,4802.4,4802.3,8.62733554]
[1756079034403,1.23388772,4802.4,4802.3,8.62733554]
[1756079035059,0.78705598,4802.4,4802.3,8.62733554]
[1756079035258,1.23404058,4802.4,4802.3,8.62733554]
[1756079036072,0.78705598,4802.4,4802.3,8.62733554]
[1756079036503,0.48536375,4802.4,4802.3,9.28733554]
[1756079036802,0.03835598,4802.4,4802.3,9.28733554]
[1756079037007,0.48355598,4802.4,4802.3,9.28733554]
[1756079037303,0.03835598,4802.4,4802.3,9.28733554]
[1756079037689,0.78705598,4802.4,4802.3,9.28733554]
[1756079038569,1.23471845,4802.4,4802.3,9.28733554]
[1756079039207,0.78705598,4802.4,4802.3,9.28733554]
[1756079039408,1.23493683,4802.4,4802.3,9.28733554]
[1756079039811,1.23493683,4802.4,4802.3,5.62633554]
[1756079040111,1.35843051,4802.4,4802.3,5.62633554]
[1756079040409,1.23493683,4802.4,4802.2,3.78837449]
[1756079040567,0.34185598,4802.4,4802.3,3.544]
[1756079040905,0.78998408,4802.4,4802.3,5.62633554]
[1756079041075,1.23518408,4802.4,4802.3,5.73033554]
[1756079043146,1.23518408,4802.4,4802.3,0.104]
[1756079043422,1.23518408,4802.4,4802.3,5.73033554]
[1756079044815,0.48648408,4802.4,4802.3,5.73033554]
[1756079045033,0.48648408,4802.4,4802.3,9.08142504]
[1756079046305,0.48648408,4802.4,4802.3,8.73033554]
[1756079046484,0.03835598,4802.4,4802.3,9.39033554]
[1756079048315,0.002,4802.9,4802.3,7.308]
[1756079048613,0.002,4802.9,4802.7,0.66]
[1756079048823,0.002,4802.9,4802.8,9.39011876]
[1756079048984,0.002,4802.9,4802.8,10.74557842]
[1756079049179,0.002,4802.9,4802.8,10.64157842]
[1756079049406,0.7507,4802.9,4802.8,7.20157842]
[1756079049726,0.7507,4802.9,4802.8,9.39011876]
[1756079050293,0.002,4802.9,4802.8,9.39011876]
[1756079050489,0.4472,4802.9,4802.8,9.39011876]
[1756079050825,0.7507,4802.9,4802.8,9.39011876]
[1756079051005,0.7507,4802.9,4802.8,5.84611876]
[1756079051196,0.7507,4802.9,4802.8,9.38911876]
[1756079051391,0.6817,4802.9,4802.8,9.38911876]
[1756079052185,0.2495,4803.2,4803.1,2.08198871]
[1756079052401,0.553,4803.2,4803.1,5.62498871]
[1756079053000,0.553,4803.2,4803.1,5.72898871]
[1756079053310,0.9832,4803.2,4803.1,7.32998871]
[1756079055598,0.9832,4803.2,4803.1,3.78698871]
[1756079055800,0.9832,4803.2,4803.1,7.32998871]
[1756079057398,0.6797,4803.2,4803.1,7.32998871]
[1756079057600,0.9689,4803.2,4803.1,7.32998871]
[1756079058530,0.2495,4803.2,4803.1,7.32998871]
[1756079059031,0.6797,4803.2,4803.1,7.32998871]
[1756079059334,0.2495,4803.2,4803.1,7.32998871]
[1756079059636,0.2495,4803.2,4803.1,9.23119075]
[1756079060453,0.2495,4803.2,4803.1,9.48069075]
[1756079061058,0.2495,4803.2,4803.1,12.48069075]
[1756079061251,0.002,4803.3,4803.1,12.48069075]
[1756079061252,1e-08,4803.3,4803.2,2.08194536]
[1756079061417,1e-08,4803.3,4803.2,7.30220897]
[1756079062033,1e-08,4803.3,4803.2,7.73240897]
[1756079062236,1e-08,4803.4,4803.3,5.74190202]
[1756079062442,1e-08,4803.4,4803.3,9.28390202]
[1756079062750,1e-08,4803.4,4803.3,10.86639996]
[1756079067233,1e-08,4803.4,4803.3,7.32439996]
[1756079067443,1e-08,4803.4,4803.3,10.86639996]
[1756079067756,1e-08,4803.4,4803.3,11.29659996]
[1756079073170,1e-08,4803.4,4803.3,7.90938247]
[1756079073380,0.28920001,4803.4,4803.3,11.29559996]
[1756079073531,0.71940001,4803.4,4803.3,6.05310202]
[1756079073872,0.71940001,4803.4,4803.3,9.71310202]
[1756079074052,0.71940001,4803.4,4803.3,6.71310202]
[1756079074471,0.71940001,4803.4,4803.3,9.71210202]
[1756079075186,0.71940001,4803.4,4803.3,6.17210202]
[1756079075349,0.71940001,4803.4,4803.3,6.05210202]
[1756079075545,0.71940001,4803.4,4803.3,5.62190202]
[1756079076758,0.71940001,4803.4,4803.3,3.54]
[1756079077150,0.71940001,4803.4,4803.3,5.62190202]
[1756079077369,0.71940001,4803.4,4803.3,3.54]
[1756079078562,0.71940001,4803.4,4803.3,5.62190202]
[1756079078766,0.71940001,4803.4,4803.3,3.54]
[1756079079081,0.71940001,4803.4,4803.3,5.62190202]
[1756079079245,0.71940001,4803.4,4803.3,3.54]
[1756079080380,0.71940001,4803.4,4803.3,5.62190202]
[1756079080772,0.71940001,4803.4,4803.3,3.54]
[1756079080974,0.71940001,4803.4,4803.2,0.104]
[1756079081177,0.28920001,4803.4,4803.3,5.62190202]
[1756079081766,0.71940001,4803.4,4803.3,5.62190202]
[1756079082466,0.71940001,4803.4,4803.3,3.54]
[1756079084768,0.82340001,4803.4,4803.3,3.54]
[1756079084953,0.82340001,4803.4,4803.2,3.54]
[1756079085157,0.39320001,4803.4,4803.3,3.54]
[1756079085773,0.85290001,4803.4,4802.7,0.104]
[1756079085999,0.39320001,4803.4,4803.3,0.044]
[1756079086351,6.3593275,4803.4,4803.3,0.044]
[1756079086670,10.90393955,4803.4,4803.3,0.044]
[1756079086871,11.22978056,4803.4,4803.3,0.044]
[1756079087069,11.85581256,4803.4,4803.3,0.044]
[1756079087985,2.78568507,4803.4,4803.3,0.044]
[1756079088293,0.85290001,4803.4,4803.3,2.12590202]
[1756079088794,1e-08,4803.4,4803.3,2.12590202]
[1756079090296,1e-08,4803.4,4803.3,2.78590202]
[1756079090814,1e-08,4803.4,4803.3,5.78590202]
[1756079091866,0.00200001,4803.4,4803.3,5.78590202]
[1756079093392,1e-08,4803.4,4803.3,7.04108913]
[1756079094386,1e-08,4803.4,4803.3,10.58108913]
[1756079094588,1e-08,4803.4,4803.3,11.04278913]
[1756079096373,0.76600001,4803.4,4803.3,8.04178913]
[1756079096582,0.76600001,4803.4,4803.3,6.23060202]
[1756079096974,0.45970001,4803.4,4803.3,9.23060202]
[1756079097179,1e-08,4803.4,4803.3,8.76890202]
[1756079097415,1e-08,4803.4,4803.3,9.42890202]
[1756079097627,1e-08,4803.4,4803.3,11.03968913]
[1756079100620,1e-08,4803.4,4803.3,7.50068913]
[1756079100784,0.76600001,4803.4,4803.3,5.68960202]
[1756079101137,0.76600001,4803.4,4803.3,8.76890202]
[1756079101627,1e-08,4803.4,4803.3,9.42890202]
[1756079103599,1e-08,4803.4,4803.3,9.32490202]
[1756079103819,1e-08,4803.4,4803.3,9.42890202]
[1756079104150,0.04,4805.4,4805.1,2.08112214]
[1756079104293,0.04,4805.4,4805.3,2.08103552]
[1756079104491,0.04,4805.4,4805.3,2.18503552]
[1756079104797,0.3463,4805.4,4805.3,2.18503552]
[1756079105006,0.806,4805.4,4805.3,2.18503552]
[1756079106501,0.04,4805.4,4805.3,2.18503552]
[1756079106952,0.04,4805.4,4805.3,3.23666003]
[1756079107303,0.806,4805.4,4805.3,6.23666003]
[1756079108107,0.806,4805.4,4805.3,5.18503552]
[1756079108305,0.806,4805.4,4805.3,3.538]
[1756079108742,0.806,4805.4,4805.1,0.104]
[1756079108947,0.4597,4805.3,4805.0,3.538]
[1756079109128,0.4597,4805.3,4803.8,2.08165539]
[1756079109129,0.3063,4805.1,4804.1,0.625659]
[1756079109445,0.4103,4805.1,4804.4,2.08139003]
[1756079109609,0.4597,4805.0,4804.7,2.0812888]
[1756079109810,0.4597,4804.9,4804.8,5.61925208]
[1756079110116,0.766,4804.9,4804.8,5.61925208]
[1756079110333,0.042,4805.4,4804.8,3.538]
[1756079110645,0.5017,4805.4,4805.3,2.08103552]
[1756079110808,0.808,4805.4,4805.3,5.61803552]
[1756079112546,0.808,4805.4,4805.1,0.104]
[1756079112752,0.104,4805.2,4804.8,3.537]
[1756079112922,0.3055,4804.9,4804.7,3.537]
[1756079113121,0.4317,4804.8,4804.7,3.537]
[1756079113310,0.7372,4804.8,4804.7,3.537]
[1756079113668,0.3055,4804.8,4804.7,5.61829539]
[1756079113943,0.3055,4804.8,4804.7,5.72229539]
[1756079113944,0.7372,4804.8,4804.7,5.72229539]
[1756079115657,0.4317,4805.2,4805.1,2.08112214]
[1756079115820,0.7372,4805.2,4805.1,5.61812214]
[1756079116021,0.7372,4805.2,4804.9,5.61817285]
[1756079116216,0.4317,4805.1,4805.0,2.08116545]
[1756079116434,0.7372,4805.1,4805.0,2.08116545]
[1756079116751,0.7372,4805.1,4804.9,3.537]
[1756079116950,0.3055,4805.1,4804.9,3.537]
[1756079117150,0.4317,4805.0,4804.9,5.61820876]
[1756079117452,0.7372,4805.0,4804.9,5.61820876]
[1756079118054,0.7372,4805.0,4804.9,3.537]
[1756079118363,0.7372,4805.0,4804.8,3.537]
[1756079118563,0.4317,4804.9,4804.7,3.537]
[1756079118761,0.3055,4804.8,4804.6,3.537]
[1756079119260,0.4317,4804.7,4804.6,3.537]
[1756079119430,0.7372,4804.7,4804.6,5.61833871]
[1756079119869,0.7372,4804.7,4804.6,3.537]
[1756079120070,0.7372,4804.7,4804.1,3.104]
[1756079120230,0.4317,4804.6,4804.2,3.537]
[1756079120737,0.4317,4804.6,4804.5,2.08138203]
[1756079120965,0.5357,4805.0,4804.7,2.08128423]
[1756079121261,0.104,4805.0,4804.7,5.61828423]
[1756079121432,0.3055,4804.8,4804.7,3.537]
[1756079121765,0.7372,4804.8,4804.7,5.61829539]
[1756079122348,0.3055,4804.8,4804.7,5.61829539]
[1756079122552,0.5357,4805.3,4804.9,2.08120876]
[1756079122741,0.5357,4805.3,4805.0,3.537]
[1756079122939,0.3055,4805.1,4805.0,5.61816209]
[1756079124867,0.4317,4805.2,4805.1,2.08112214]
[1756079125049,0.7372,4805.2,4805.1,2.08112214]
[1756079125261,0.104,4805.3,4805.2,2.08107883]
[1756079125457,0.104,4805.3,4805.2,5.92167883]
[1756079125640,0.104,4805.3,4805.2,6.72196292]
[1756079125826,0.042,4805.4,4805.3,2.08103552]
[1756079126169,0.042,4805.4,4805.3,2.38463552]
[1756079127489,0.042,4805.4,4805.3,5.92163552]
[1756079127992,0.042,4805.4,4805.3,6.95403552]
[1756079128190,0.042,4805.4,4805.3,11.32649157]
[1756079130583,0.042,4805.4,4805.3,10.95409157]
[1756079131092,0.002,4805.7,4805.6,2.74090561]
[1756079131253,0.002,4805.7,4805.6,9.58050561]
[1756079131884,0.04,4806.4,4806.3,2.08060254]
[1756079132202,0.04,4806.4,4806.3,6.02420254]
[1756079132397,0.04,4806.4,4806.3,6.99468966]
[1756079133095,0.3455,4806.4,4806.3,3.15508966]
[1756079133304,0.7772,4806.4,4806.3,5.72060254]
[1756079133862,0.04,4806.4,4806.3,6.02420254]
[1756079134873,0.3455,4806.4,4806.3,5.72060254]
[1756079135082,0.7772,4806.4,4806.3,5.72060254]
[1756079135678,0.3455,4806.4,4806.3,8.72060254]
[1756079136004,0.04,4806.4,4806.3,8.72060254]
[1756079136480,0.3455,4806.4,4806.3,5.18460254]
[1756079136683,0.7772,4806.4,4806.3,8.71960254]
[1756079137500,0.04,4806.4,4806.3,8.71960254]
[1756079138480,0.04,4806.4,4806.3,9.02320254]
[1756079138893,0.04,4806.4,4806.3,8.71960254]
[1756079139702,0.04,4806.4,4806.3,10.26322966]
[1756079139872,0.3455,4806.4,4806.3,8.71960254]
[1756079140487,0.7772,4806.4,4806.3,8.71960254]
[1756079141174,0.7772,4806.4,4806.3,5.71960254]
[1756079141670,0.7772,4806.4,4806.3,3.535]
[1756079142206,0.7792,4806.4,4806.2,3.535]
[1756079142373,0.3475,4806.4,4806.2,3.535]
[1756079142573,0.4317,4806.3,4806.2,3.535]
[1756079142905,0.7435,4806.3,4806.2,3.535]
[1756079143112,0.7435,4806.3,4805.8,2.08081901]
[1756079143323,0.3118,4806.3,4805.9,3.535]
[1756079143472,0.4685,4806.2,4806.0,3.535]
[1756079143809,0.3118,4806.1,4806.0,5.61573241]
[1756079143977,0.7803,4806.1,4806.0,2.08073241]
[1756079144176,0.7803,4806.1,4806.0,5.61573241]
[1756079147507,0.3118,4806.1,4806.0,5.61573241]
[1756079148009,0.7803,4806.1,4806.0,5.61573241]
[1756079148508,0.3118,4806.1,4806.0,5.61573241]
[1756079149014,0.7803,4806.1,4806.0,5.61573241]
[1756079149510,0.104,4806.3,4806.2,2.08064583]
[1756079149681,0.4158,4806.3,4806.2,5.61464583]
[1756079149887,0.8843,4806.3,4806.2,5.61464583]
[1756079151581,0.104,4806.3,4806.2,5.61464583]
[1756079151914,0.8403,4806.3,4806.2,5.61464583]
[1756079152115,0.8403,4806.3,4806.2,3.534]
[1756079152635,0.8403,4806.3,4805.6,0.001]
[1756079152918,0.104,4805.7,4805.6,0.001]
[1756079153125,0.4158,4805.7,4805.6,0.001]
[1756079153311,0.8843,4805.7,4805.6,0.001]
[1756079157028,0.8843,4805.7,4803.9,0.001]
[1756079157029,4.33318079,4805.7,4803.9,0.001]
[1756079157188,5.96358603,4804.9,4803.9,3.535]
[1756079157391,0.4158,4804.5,4804.1,2.08151542]
[1756079157607,0.4158,4804.5,4803.9,3.535]
[1756079158121,0.8843,4804.5,4803.9,3.535]
[1756079158421,0.8843,4804.5,4804.1,2.0815287]
[1756079158630,0.8843,4804.5,4803.9,3.535]
[1756079158791,0.8843,4804.5,4804.3,2.0824646]
[1756079159224,0.8843,4804.5,4804.3,0.001]
[1756079160393,0.104,4804.5,4804.4,2.08242536]
[1756079160824,2.0685,4806.0,4804.4,0.6823]
[1756079161121,0.104,4805.8,4805.7,2.0808623]
[1756079161323,0.104,4805.8,4805.6,2.08090308]
[1756079161536,0.104,4805.8,4805.7,2.0808623]
[1756079161691,0.002,4806.1,4805.4,3.534]
[1756079161891,0.002,4806.1,4805.7,2.08082191]
[1756079162093,0.002,4806.1,4805.2,0.104]
[1756079162290,0.002,4806.1,4805.8,2.08080893]
[1756079162483,0.106,4806.1,4806.0,2.08073241]
[1756079163503,0.002,4806.1,4806.0,2.08073241]
[1756079163716,0.002,4806.1,4806.0,2.38863241]
[1756079163909,0.002,4806.1,4806.0,2.49263241]
[1756079165506,0.002,4806.1,4806.0,3.34071566]
[1756079165693,0.002,4806.1,4806.0,1.25998325]
[1756079165919,0.7823,4806.1,4806.0,3.534]
[1756079166096,0.002,4806.1,4806.0,3.534]
[1756079166297,0.002,4806.1,4806.0,5.92263241]
[1756079166818,0.002,4806.1,4806.0,2.18473241]
[1756079167131,0.002,4806.1,4806.0,5.71873241]
[1756079167530,0.002,4806.1,4806.0,10.46658585]
[1756079167731,1e-08,4806.1,4806.0,12.43998585]
[1756079168437,0.04,4807.4,4806.0,12.43998585]
[1756079168438,0.04,4807.4,4807.3,2.08016974]
[1756079168607,0.04,4807.4,4807.3,5.92106974]
[1756079169640,0.04,4807.4,4807.3,6.95446974]
[1756079169802,0.04,4807.4,4807.3,8.01794044]
[1756079170004,0.04,4807.4,4807.3,11.01794044]
[1756079170636,0.04,4807.4,4807.3,7.11154044]
[1756079170817,0.04,4807.4,4807.3,10.64454044]
[1756079171336,0.04,4807.4,4807.3,11.01794044]
[1756079172305,0.04,4807.4,4807.3,7.48494044]
[1756079172504,0.04,4807.4,4807.3,11.01794044]
[1756079174015,0.04,4807.4,4807.3,7.11154044]
[1756079174343,0.04,4807.4,4807.3,11.01694044]
[1756079175935,0.04,4808.4,4807.3,8.9367707]
[1756079176131,0.04,4808.4,4807.5,0.66]
[1756079176333,0.04,4808.4,4807.4,1.05367707]
[1756079176334,0.04,4808.4,4808.3,2.07973712]
[1756079176510,0.04,4808.4,4808.3,5.61173712]
[1756079177749,0.04,4808.4,4808.3,5.71573712]
[1756079180044,0.3504,4808.4,4808.3,5.71573712]
[1756079180443,0.04,4808.4,4808.3,5.71573712]
[1756079181649,0.04,4808.4,4808.3,6.02283712]
[1756079182146,0.04,4808.4,4808.3,6.99310127]
[1756079182551,0.04,4808.4,4808.3,10.65310127]
[1756079182906,0.04,4808.4,4808.3,11.02650127]
[1756079183148,1e-08,4808.4,4808.3,11.02650127]
[1756079184133,1e-08,4808.4,4808.3,11.42340127]
[1756079184311,1e-08,4808.4,4808.3,11.52740127]
[1756079184952,1e-08,4808.4,4808.3,7.62200127]
[1756079185116,1e-08,4808.4,4808.3,6.15400127]
[1756079185314,1e-08,4808.4,4808.3,9.99210127]
[1756079185527,1e-08,4808.4,4808.3,10.65210127]
[1756079185849,1e-08,4808.4,4808.3,9.99210127]
[1756079186049,1e-08,4808.4,4808.3,10.65210127]
[1756079186258,1e-08,4808.4,4808.3,7.12110127]
[1756079186429,1e-08,4808.4,4808.3,10.65210127]
[1756079186619,1e-08,4808.4,4808.3,7.12110127]
[1756079186822,1e-08,4808.4,4808.3,10.65210127]
[1756079187146,1e-08,4808.4,4808.3,7.12110127]
[1756079187346,1e-08,4808.4,4808.3,10.65210127]
[1756079188127,1e-08,4808.4,4808.3,7.12110127]
[1756079188453,1e-08,4808.4,4808.3,10.65210127]
[1756079190251,1e-08,4808.4,4808.3,11.02550127]
[1756079190412,1e-08,4808.4,4808.3,23.92927187]
[1756079190616,0.4609,4810.5,4810.3,2.07887241]
[1756079190922,0.3504,4810.4,4810.3,5.71387241]
[1756079191754,0.04,4810.4,4810.3,10.51615357]
[1756079191930,0.04,4810.4,4810.3,6.98515357]
[1756079192127,0.8113,4810.4,4810.3,6.01805357]
[1756079192328,0.04,4810.4,4810.3,9.26887241]
[1756079192546,0.04,4810.4,4810.3,9.37287241]
[1756079193447,0.04,4810.4,4810.3,9.67997241]
[1756079193641,0.042,4810.4,4810.3,9.67997241]
[1756079193838,0.042,4810.4,4810.3,11.01576357]
[1756079194241,0.3524,4810.4,4810.3,7.17866357]
[1756079194441,0.3524,4810.4,4810.3,10.70866357]
[1756079194640,0.8133,4810.4,4810.3,6.51866357]
[1756079194958,0.3524,4810.4,4810.3,9.37287241]
[1756079195121,0.042,4810.4,4810.3,9.37287241]
[1756079195323,0.042,4810.4,4810.3,9.67997241]
[1756079195525,0.042,4810.4,4810.3,11.01576357]
[1756079195830,1e-08,4810.4,4810.3,7.38176357]
[1756079196045,1e-08,4810.4,4810.3,10.92176357]
[1756079196346,1e-08,4810.4,4810.3,10.92576357]
[1756079196553,1e-08,4810.4,4810.3,11.29916357]
[1756079197165,1e-08,4810.9,4810.8,2.73865635]
[1756079197462,1e-08,4810.9,4810.8,10.57837731]
[1756079198041,1e-08,4810.9,4810.8,10.27127731]
[1756079198234,0.31040001,4810.9,4810.8,10.27127731]
[1756079198768,0.77130001,4810.9,4810.8,3.543]
[1756079198970,0.77130001,4810.9,4809.1,0.4609]
[1756079199275,0.4609,4810.8,4809.0,2.07941365]
[1756079199436,0.3104,4810.1,4810.0,2.07900207]
[1756079199637,0.7713,4810.1,4810.0,5.62400207]
[1756079200536,0.3104,4810.1,4810.0,6.39430928]
[1756079201161,0.7713,4810.1,4810.0,6.39330928]
[1756079201382,0.7713,4810.1,4810.0,5.62300207]
[1756079201566,0.7713,4810.1,4809.4,3.0]
[1756079201866,0.7713,4810.1,4809.3,1.599]
[1756079201867,0.3104,4810.1,4809.9,2.0790453]
[1756079202071,0.4609,4810.7,4810.1,0.66]
[1756079202243,0.4609,4810.7,4810.4,2.07881112]
[1756079202447,1e-08,4810.9,4810.8,2.73865635]
[1756079202644,1e-08,4810.9,4810.8,6.28265635]
[1756079203566,1e-08,4810.9,4810.8,6.59265635]
[1756079203735,1e-08,4810.9,4810.8,7.45979446]
[1756079203939,1e-08,4810.9,4810.8,7.14979446]
[1756079204140,0.73340001,4810.9,4810.8,2.07865635]
[1756079204351,0.73340001,4810.9,4810.8,5.62465635]
[1756079204576,1e-08,4810.9,4810.8,5.62465635]
[1756079204881,1e-08,4810.9,4810.8,6.28465635]
[1756079205868,1e-08,4810.9,4810.8,6.38865635]
[1756079206056,1e-08,4810.9,4810.8,7.23539443]
[1756079207883,0.73340001,4810.9,4810.8,2.18265635]
[1756079208181,1e-08,4810.9,4810.8,9.70465635]
[1756079208378,1e-08,4810.9,4810.8,10.07805635]
[1756079208580,0.042,4811.4,4811.1,2.0785074]
[1756079208777,0.042,4811.4,4811.3,6.04844033]
[1756079208946,0.042,4811.4,4811.3,6.15244033]
[1756079209565,0.042,4811.4,4811.3,5.84244033]
[1756079210156,0.042,4811.4,4811.3,9.39644033]
[1756079210881,0.7754,4811.4,4811.3,8.73644033]
[1756079211841,0.7754,4811.4,4811.3,5.73644033]
[1756079212048,0.7754,4811.4,4810.9,2.07857666]
[1756079212276,0.89106103,4811.3,4810.6,3.554]
[1756079212477,0.2892,4810.7,4810.5,2.07878598]
[1756079212749,0.2892,4810.7,4810.6,5.63274277]
[1756079212945,0.73633529,4810.7,4810.6,5.63274277]
[1756079213147,0.2892,4810.7,4810.6,5.63274277]
[1756079213391,0.7334,4810.7,4810.6,5.63274277]
[1756079213579,1.18061144,4810.7,4810.6,5.63274277]
[1756079214187,0.4442,4811.1,4811.0,2.07856994]
[1756079214389,1.18060755,4811.1,4811.0,5.63356994]
[1756079214762,1.18060755,4811.1,4811.0,5.73756994]
[1756079215287,1.18060755,4811.1,4811.0,3.659]
[1756079215449,0.7334,4811.1,4811.0,5.73756994]
[1756079215853,0.7334,4811.1,4811.0,2.18256994]
[1756079216153,0.7334,4811.1,4811.0,5.73756994]
[1756079216348,0.7334,4811.1,4811.0,0.104]
[1756079216565,1.1809165,4811.1,4811.0,5.74156994]
[1756079216754,1.1809165,4811.1,4811.0,3.663]
[1756079216953,1.1809165,4811.1,4811.0,3.559]
[1756079217194,1.1809165,4811.1,4811.0,5.63756994]
[1756079217548,1.1809165,4811.1,4811.0,3.559]
[1756079217987,1.1809165,4811.1,4810.8,3.671]
[1756079218190,0.4475165,4811.0,4810.8,0.104]
[1756079218491,0.2892,4810.9,4810.7,3.567]
[1756079218794,0.4442,4810.8,4810.7,3.567]
[1756079218962,0.7334,4810.8,4810.6,3.566]
[1756079219367,0.4442,4810.7,4810.6,3.566]
[1756079219588,0.7334,4810.7,4810.6,3.566]
[1756079220255,1.18159352,4810.7,4810.6,2.07874277]
[1756079220655,1.18159352,4810.7,4810.5,3.565]
[1756079220895,0.2892,4810.7,4810.6,2.07874277]
[1756079221078,0.73754113,4810.7,4810.6,2.07874277]
[1756079221506,0.7334,4810.7,4810.4,3.564]
[1756079221820,0.2892,4810.7,4810.4,3.564]
[1756079222323,0.4442,4810.6,4810.4,3.564]
[1756079222525,0.104,4810.8,4810.4,3.564]
[1756079222526,0.2892,4810.5,4810.4,3.564]
[1756079222728,0.7334,4810.5,4810.4,3.564]
[1756079222883,0.104,4810.8,4810.4,3.564]
[1756079223085,0.2892,4810.5,4810.4,5.64280513]
[1756079223289,0.4442,4810.9,4810.7,2.07866375]
[1756079223501,0.2892,4810.8,4810.7,2.07866375]
[1756079223786,0.7334,4810.8,4810.7,5.64166375]
[1756079224008,0.7334,4810.8,4810.7,3.563]
[1756079225524,0.7334,4810.8,4810.5,3.563]
[1756079225724,0.4442,4810.7,4810.2,0.104]
[1756079225937,0.2892,4810.3,4809.4,1.598]
[1756079226223,0.4442,4810.2,4809.6,0.104]
[1756079226398,0.4442,4810.2,4809.7,2.07913175]
[1756079226593,0.4442,4810.2,4809.8,3.562]
[1756079226835,0.2892,4809.9,4809.6,0.104]
[1756079227028,0.104,4809.7,4809.3,0.001]
[1756079227195,0.2892,4809.4,4809.3,0.001]
[1756079227402,0.3932,4809.4,4809.3,0.001]
[1756079227722,0.8374,4809.4,4809.3,0.001]
[1756079228156,0.8374,4809.4,4808.4,0.105]
[1756079228157,2.07939332,4809.1,4808.4,0.105]
[1756079228423,0.2892,4808.5,4807.3,0.001]
[1756079228594,1.598,4808.4,4807.3,0.001]
[1756079228782,0.2892,4807.4,4807.3,0.001]
[1756079228989,0.3932,4807.4,4807.3,0.001]
[1756079229182,0.8374,4807.4,4806.9,0.001]
[1756079229385,0.24354,4807.3,4806.9,0.001]
[1756079229587,3.8572,4807.2,4806.9,0.001]
[1756079229819,10.84941301,4807.2,4806.9,0.001]
[1756079229998,11.74064634,4807.2,4806.9,0.001]
[1756079230199,12.06626349,4807.2,4806.9,0.001]
[1756079230395,13.57365337,4807.2,4806.9,0.001]
[1756079231324,9.68544036,4807.2,4806.9,0.001]
[1756079231827,11.76565337,4807.2,4806.9,0.001]
[1756079231996,9.68544036,4807.2,4806.9,0.001]
[1756079232203,2.22620703,4807.2,4806.9,0.001]
[1756079232411,0.104,4807.2,4806.9,0.001]
[1756079232626,0.104,4807.2,4806.9,2.08133432]
[1756079232817,0.104,4807.2,4807.0,2.08029181]
[1756079233201,0.104,4807.2,4806.9,0.001]
[1756079233506,1.599,4808.4,4807.1,0.3296]
[1756079233701,1.599,4808.4,4807.7,2.07999452]
[1756079233702,0.104,4807.9,4807.7,2.07999452]
[1756079233930,0.104,4807.9,4807.1,0.144]
[1756079234136,0.104,4807.9,4807.5,2.08004027]
[1756079234435,0.104,4807.9,4807.1,0.144]
[1756079234436,0.2939,4807.6,4807.1,0.144]
[1756079234633,0.4348,4807.5,4807.1,0.144]
[1756079234815,0.2939,4807.2,4807.1,0.04]
[1756079235015,0.3979,4807.2,4807.1,0.04]
[1756079235929,0.104,4807.2,4807.1,2.12025628]
[1756079236231,0.104,4807.7,4807.1,0.3296]
[1756079236410,0.104,4807.7,4807.4,2.08012395]
[1756079236810,1.599,4808.4,4807.6,0.2896]
[1756079237013,0.104,4808.3,4807.7,0.104]
[1756079237342,0.1703,4808.2,4807.6,2.08003473]
[1756079237546,0.2939,4807.8,4807.1,0.04]